fUSD/lending_fUSD_20250602
["ID","MTS","AMOUNT","RATE_DAILY","PERIOD"]
[363731993,1748851848133,-500.0,0.00019589,2]
[363731994,1748851848142,-319.74792185,0.00019589,2]
[363731995,1748851848152,-150.0,0.00019589,2]
[363731996,1748851848161,-420.0,0.00019589,2]
[363731997,1748851848170,-519.61553835,0.00019589,2]
[363731998,1748851848180,-420.0,0.00019589,2]
[363731999,1748851848189,-420.0,0.00019589,2]
[363732000,1748851848199,-420.0,0.00019589,2]
[363732001,1748851848208,-420.0,0.00019589,2]
[363732002,1748851848217,-420.0,0.00019589,2]
[363732003,1748851848226,-420.0,0.00019589,2]
[363732004,1748851848235,-420.0,0.00019589,2]
[363732005,1748851848244,-420.0,0.00019589,2]
[363732006,1748851848253,-421.1,0.00019589,2]
[363732007,1748851848263,-1482.96,0.00019589,2]
[363732008,1748851848273,-420.0,0.00019589,2]
[363732009,1748851848282,-766.88,0.00019589,2]
[363732010,1748851848291,-420.0,0.00019589,2]
[363732011,1748851848300,-420.0,0.00019589,2]
[363732012,1748851848311,-420.0,0.00019589,2]
[363732013,1748851848321,-601.92,0.00019589,2]
[363732014,1748851848330,-453.38,0.00019589,2]
[363732015,1748851848339,-744.05,0.00019589,2]
[363732016,1748851848348,-500.0,0.00019589,2]
[363732017,1748851848358,-1397.73,0.00019589,2]
[363732018,1748851848367,-420.0,0.00019589,2]
[363732019,1748851848376,-188.78,0.00019589,2]
[363732020,1748851848386,-571.42,0.00019589,2]
[363732021,1748851848396,-433.82,0.00019589,2]
[363732022,1748851848405,-420.0,0.00019589,2]
[363732023,1748851848415,-257.91035816,0.00019589,2]
[363732024,1748851848424,-1879.38,0.00019589,2]
[363732025,1748851848434,-420.0,0.00019589,2]
[363732026,1748851848443,-2175.84,0.00019589,2]
[363732027,1748851848454,-420.0,0.00019589,2]
[363732028,1748851848464,-420.0,0.00019589,2]
[363732029,1748851848474,-2379.6,0.00019589,2]
[363732030,1748851848484,-420.0,0.00019589,2]
[363732031,1748851848493,-1668.89,0.00019589,2]
[363732032,1748851848503,-889.35,0.00019589,2]
[363732033,1748851848512,-420.0,0.00019589,2]
[363732034,1748851848522,-895.18,0.00019589,2]
[363732035,1748851848531,-420.0,0.00019589,2]
[363732036,1748851848541,-507.05,0.00019589,2]
[363732037,1748851848551,-959.29,0.00019589,2]
[363732038,1748851848560,-691.35,0.00019589,2]
[363732039,1748851848569,-1046.99,0.00019589,2]
[363732040,1748851848579,-6146.5,0.00019589,2]
[363732041,1748851848588,-420.0,0.00019589,2]
[363732042,1748851848598,-420.0,0.00019589,2]
[363732043,1748851848608,-420.0,0.00019589,2]
[363732044,1748851848617,-420.0,0.00019589,2]
[363732045,1748851848628,-420.0,0.00019589,2]
[363732046,1748851848637,-420.0,0.00019589,2]
[363732047,1748851848647,-410.46810516,0.00019589,2]
[363732048,1748851848657,-420.0,0.00019589,2]
[363732049,1748851848667,-434.99,0.00019589,2]
[363732050,1748851848675,-420.0,0.00019589,2]
[363732051,1748851848684,-420.0,0.00019589,2]
[363732052,1748851848694,-238.97,0.00019589,2]
[363732053,1748851848704,-420.0,0.00019589,2]
[363732054,1748851848772,-420.0,0.00019589,2]
[363732055,1748851848783,-653.24,0.00019589,2]
[363732056,1748851848793,-372.4609239,0.00019589,2]
[363732057,1748851848806,-420.0,0.00019589,2]
[363732058,1748851848816,-420.0,0.00019589,2]
[363732059,1748851848825,-420.0,0.00019589,2]
[363732060,1748851848835,-893.19,0.00019589,2]
[363732061,1748851848844,-516.29,0.00019589,2]
[363732062,1748851848853,-420.0,0.00019589,2]
[363732063,1748851848863,-420.0,0.00019589,2]
[363732064,1748851848872,-869.93,0.00019589,2]
[363732065,1748851848881,-624.02,0.00019589,2]
[363732066,1748851848892,-420.0,0.00019589,2]
[363732067,1748851848901,-154.80658756,0.00019589,2]
[363732068,1748851848910,-420.0,0.00019589,2]
[363732069,1748851848920,-695.55,0.00019589,2]
[363732070,1748851848929,-1095.06,0.00019589,2]
[363732071,1748851848938,-420.0,0.00019589,2]
[363732072,1748851848947,-420.0,0.00019589,2]
[363732073,1748851848959,-420.0,0.00019589,2]
[363732074,1748851848970,-420.0,0.00019589,2]
[363732075,1748851848979,-1351.0,0.00019589,2]
[363732076,1748851848989,-420.0,0.00019589,2]
[363732077,1748851848999,-296.08842008,0.00019589,2]
[363732078,1748851849008,-420.0,0.00019589,2]
[363732079,1748851849017,-440.61,0.00019589,2]
[363732080,1748851849026,-420.0,0.00019589,2]
[363732081,1748851849036,-420.0,0.00019589,2]
[363732082,1748851849045,-474.32,0.00019589,2]
[363732083,1748851849054,-3649.37,0.00019589,2]
[363732084,1748851849063,-2635.9,0.00019589,2]
[363732085,1748851849072,-1718.55,0.00019589,2]
[363732086,1748851849081,-420.0,0.00019589,2]
[363732087,1748851849091,-420.0,0.00019589,2]
[363732088,1748851849100,-420.0,0.00019589,2]
[363732089,1748851849109,-616.4,0.00019589,2]
[363732090,1748851849118,-420.0,0.00019589,2]
[363732091,1748851849128,-420.0,0.00019589,2]
[363732092,1748851849137,-420.0,0.00019589,2]
[363732093,1748851849147,-420.0,0.00019589,2]
[363732094,1748851849157,-420.0,0.00019589,2]
[363732095,1748851849166,-420.0,0.00019589,2]
[363732096,1748851849176,-1552.61,0.00019589,2]
[363732097,1748851849186,-246.33737635,0.00019589,2]
[363732098,1748851849196,-525.90627377,0.00019589,2]
[363732099,1748851849206,-420.0,0.00019589,2]
[363732100,1748851849215,-10967.4,0.00019589,2]
[363732101,1748851849225,-420.0,0.00019589,2]
[363732102,1748851849235,-420.0,0.00019589,2]
[363732103,1748851849244,-420.0,0.00019589,2]
[363732104,1748851849253,-798.41,0.00019589,2]
[363732105,1748851849263,-420.0,0.00019589,2]
[363732106,1748851849273,-420.0,0.00019589,2]
[363732107,1748851849282,-420.0,0.00019589,2]
[363732108,1748851849291,-420.0,0.00019589,2]
[363732109,1748851849301,-2017.97,0.00019589,2]
[363732110,1748851849311,-420.0,0.00019589,2]
[363732111,1748851849320,-420.0,0.00019589,2]
[363732112,1748851849329,-426.03,0.00019589,2]
[363732113,1748851849337,-420.0,0.00019589,2]
[363732114,1748851849346,-420.0,0.00019589,2]
[363732115,1748851849355,-2125.91,0.00019589,2]
[363732116,1748851849365,-231.32878229,0.00019589,2]
[363732117,1748851849374,-866.32,0.00019589,2]
[363732118,1748851849383,-420.0,0.00019589,2]
[363732119,1748851849393,-420.0,0.00019589,2]
[363732120,1748851849402,-642.79,0.00019589,2]
[363732121,1748851849412,-1155.76,0.00019589,2]
[363732122,1748851849421,-420.0,0.00019589,2]
[363732123,1748851849430,-420.0,0.00019589,2]
[363732124,1748851849440,-420.0,0.00019589,2]
[363732125,1748851849451,-7561.86930377,0.00019596,2]
[363732126,1748851849463,-5501.86042397,0.00019596,2]
[363732127,1748851849473,-1826.250681,0.00019596,2]
[363732128,1748851849483,-989.62983762,0.000196,2]
[363732129,1748851849493,-600.0,0.000196,7]
[363732130,1748851849502,-1000.0,0.000196,2]
[363732131,1748851849510,-150.0,0.00019611,2]
[363732132,1748851849518,-500.0,0.00019616,2]
[363732133,1748851849526,-500.0,0.00019616,2]
[363732134,1748851849535,-500.0,0.00019616,2]
[363732135,1748851849544,-150.0,0.00019616,2]
[363732136,1748851849552,-500.0,0.00019616,2]
[363732137,1748851849560,-1351.0,0.00019616,2]
[363732138,1748851849569,-500.0,0.00019644,2]
[363732139,1748851849579,-500.0,0.00019644,2]
[363732140,1748851849588,-500.0,0.00019644,2]
[363732141,1748851849597,-200.0,0.00019644,2]
[363732142,1748851849606,-500.0,0.00019644,2]
[363732143,1748851849615,-1351.0,0.00019644,2]
[363732144,1748851849625,-242.830981,0.00019644,2]
[363732145,1748851849634,-242.830981,0.00019644,2]
[363732146,1748851849644,-5501.86042397,0.00019656,2]
[363732147,1748851849654,-500.0,0.00019671,2]
[363732148,1748851849664,-500.0,0.00019671,2]
[363732149,1748851849674,-500.0,0.00019671,2]
[363732150,1748851849684,-500.0,0.00019671,2]
[363732151,1748851849698,-1351.0,0.00019671,2]
[363732152,1748851849709,-7561.86930377,0.00019672,2]
[363732153,1748851849718,-500.0,0.00019699,2]
[363732154,1748851849727,-193.44266533,0.00019699,2]
[363732155,1748851849737,-500.0,0.00019699,2]
[363732156,1748851849747,-500.0,0.00019699,2]
[363732157,1748851849756,-1351.0,0.00019699,2]
[363732158,1748851849766,-500.0,0.00019699,2]
[363732159,1748851849775,-226.914213,0.000197,2]
[363732160,1748851849785,-226.914213,0.000197,2]
[363732161,1748851849795,-242.830981,0.000197,2]
[363732162,1748851849807,-242.830985,0.000197,2]
[363732163,1748851849816,-154.915973,0.000197,2]
[363732164,1748851849826,-154.915973,0.000197,2]
[363732165,1748851849835,-151.0,0.000197,2]
[363732166,1748851849846,-600.0,0.000197,7]
[363732167,1748851849856,-81885.12,0.000197,2]
[363732168,1748851849865,-1000.0,0.000197,2]
[363732169,1748851849876,-5501.86042397,0.00019717,2]
[363732170,1748851849886,-500.0,0.00019725,2]
[363732171,1748851849896,-701.07,0.00019725,2]
[363732172,1748851849905,-500.0,0.00019726,2]
[363732173,1748851849915,-500.0,0.00019726,2]
[363732174,1748851849924,-500.0,0.00019726,2]
[363732175,1748851849934,-1351.0,0.00019726,2]
[363732176,1748851849943,-151.0,0.00019726,2]
[363732177,1748851849952,-151.0,0.00019726,2]
[363732178,1748851849962,-151.0,0.00019726,2]
[363732179,1748851849972,-151.0,0.00019726,2]
[363732180,1748851849981,-151.0,0.00019726,2]
[363732181,1748851849991,-151.0,0.00019726,2]
[363732182,1748851850001,-693.349142,0.00019726,2]
[363732183,1748851850011,-151.0,0.00019726,2]
[363732184,1748851850021,-693.349151,0.00019726,2]
[363732185,1748851850031,-151.0,0.00019726,2]
[363732186,1748851850040,-226.914213,0.00019726,2]
[363732187,1748851850050,-226.914206,0.00019726,2]
[363732188,1748851850060,-154.915973,0.00019726,2]
[363732189,1748851850070,-154.915973,0.00019726,2]
[363732190,1748851850080,-420.0,0.00019726,2]
[363732191,1748851850090,-151.0,0.00019726,2]
[363732192,1748851850100,-420.0,0.00019726,2]
[363732193,1748851850110,-159.16257028,0.00019726,2]
[363732194,1748851850120,-420.0,0.00019726,2]
[363732195,1748851850131,-420.0,0.00019726,2]
[363732196,1748851850141,-420.0,0.00019726,2]
[363732197,1748851850150,-565.06733343,0.00019726,2]
[363732198,1748851850160,-582.72,0.00019726,2]
[363732199,1748851850170,-465.14,0.00019726,2]
[363732200,1748851850181,-420.0,0.00019726,2]
[363732201,1748851850190,-482.5430764,0.00019726,2]
[363732202,1748851850200,-420.0,0.00019726,2]
[363732203,1748851850215,-420.0,0.00019726,2]
[363732204,1748851850228,-420.0,0.00019726,2]
[363732205,1748851850238,-151.652471,0.00019726,2]
[363732206,1748851850248,-420.0,0.00019726,2]
[363732207,1748851850258,-420.0,0.00019726,2]
[363732208,1748851850268,-151.0,0.00019726,2]
[363732209,1748851850278,-420.0,0.00019726,2]
[363732210,1748851850288,-151.0,0.00019726,2]
[363732211,1748851850297,-151.0,0.00019726,2]
[363732212,1748851850307,-151.0,0.00019726,2]
[363732213,1748851850317,-207.461919,0.00019726,2]
[363732214,1748851850326,-151.0,0.00019726,2]
[363732215,1748851850335,-316.3821985,0.00019726,2]
[363732216,1748851850346,-882.560416,0.00019726,2]
[363732217,1748851850355,-151.791083,0.00019726,2]
[363732218,1748851850365,-882.560416,0.00019726,2]
[363732219,1748851850375,-420.0,0.00019726,2]
[363732220,1748851850385,-420.0,0.00019726,2]
[363732221,1748851850394,-151.0,0.00019726,2]
[363732222,1748851850404,-420.0,0.00019726,2]
[363732223,1748851850414,-152.785274,0.00019726,2]
[363732224,1748851850425,-565.06733343,0.00019726,2]
[363732225,1748851850434,-155.4139898,0.00019726,2]
[363732226,1748851850445,-420.0,0.00019726,2]
[363732227,1748851850455,-420.0,0.00019726,2]
[363732228,1748851850465,-420.0,0.00019726,2]
[363732229,1748851850476,-420.0,0.00019726,2]
[363732230,1748851850485,-420.0,0.00019726,2]
[363732231,1748851850495,-421.1,0.00019726,2]
[363732232,1748851850506,-1482.96,0.00019726,2]
[363732233,1748851850516,-420.0,0.00019726,2]
[363732234,1748851850526,-766.88,0.00019726,2]
[363732235,1748851850536,-420.0,0.00019726,2]
[363732236,1748851850546,-218.450343,0.00019726,2]
[363732237,1748851850555,-263.74,0.00019726,2]
[363732238,1748851850565,-420.0,0.00019726,2]
[363732239,1748851850574,-218.450343,0.00019726,2]
[363732240,1748851850584,-601.92,0.00019726,2]
[363732241,1748851850594,-453.38,0.00019726,2]
[363732242,1748851850604,-744.05,0.00019726,2]
[363732243,1748851850614,-1397.73,0.00019726,2]
[363732244,1748851850624,-215.79,0.00019726,2]
[363732245,1748851850633,-571.42,0.00019726,2]
[363732246,1748851850643,-220.912477,0.00019726,2]
[363732247,1748851850653,-433.82,0.00019726,2]
[363732248,1748851850662,-220.912477,0.00019726,2]
[363732249,1748851850672,-306.67,0.00019726,2]
[363732250,1748851850681,-1879.38,0.00019726,2]
[363732251,1748851850691,-420.0,0.00019726,2]
[363732252,1748851850700,-2175.84,0.00019726,2]
[363732253,1748851850712,-533.19737019,0.00019726,2]
[363732254,1748851850721,-151.0,0.00019726,2]
[363732255,1748851850731,-420.0,0.00019726,2]
[363732256,1748851850741,-2379.6,0.00019726,2]
[363732257,1748851850751,-1668.89,0.00019726,2]
[363732258,1748851850760,-889.35,0.00019726,2]
[363732259,1748851850770,-420.0,0.00019726,2]
[363732260,1748851850780,-895.18,0.00019726,2]
[363732261,1748851850791,-420.0,0.00019726,2]
[363732262,1748851850805,-507.05,0.00019726,2]
[363732263,1748851850815,-959.29,0.00019726,2]
[363732264,1748851850825,-151.0,0.00019726,2]
[363732265,1748851850835,-691.35,0.00019726,2]
[363732266,1748851850845,-1046.99,0.00019726,2]
[363732267,1748851850855,-6146.5,0.00019726,2]
[363732268,1748851850865,-151.0,0.00019726,2]
[363732269,1748851850875,-420.0,0.00019726,2]
[363732270,1748851850886,-433.99,0.00019726,2]
[363732271,1748851850896,-362.36,0.00019726,2]
[363732272,1748851850906,-420.0,0.00019726,2]
[363732273,1748851850917,-420.0,0.00019726,2]
[363732274,1748851850929,-420.0,0.00019726,2]
[363732275,1748851850939,-420.0,0.00019726,2]
[363732276,1748851850949,-434.99,0.00019726,2]
[363732277,1748851850959,-420.0,0.00019726,2]
[363732278,1748851850969,-420.0,0.00019726,2]
[363732279,1748851850979,-420.0,0.00019726,2]
[363732280,1748851850989,-420.0,0.00019726,2]
[363732281,1748851850999,-653.24,0.00019726,2]
[363732282,1748851851009,-420.0,0.00019726,2]
[363732283,1748851851019,-420.0,0.00019726,2]
[363732284,1748851851029,-420.0,0.00019726,2]
[363732285,1748851851040,-893.19,0.00019726,2]
[363732286,1748851851051,-516.29,0.00019726,2]
[363732287,1748851851061,-420.0,0.00019726,2]
[363732288,1748851851070,-869.93,0.00019726,2]
[363732289,1748851851079,-151.0,0.00019726,2]
[363732290,1748851851089,-624.02,0.00019726,2]
[363732291,1748851851099,-420.0,0.00019726,2]
[363732292,1748851851109,-420.0,0.00019726,2]
[363732293,1748851851119,-695.55,0.00019726,2]
[363732294,1748851851128,-1095.06,0.00019726,2]
[363732295,1748851851138,-420.0,0.00019726,2]
[363732296,1748851851147,-420.0,0.00019726,2]
[363732297,1748851851157,-420.0,0.00019726,2]
[363732298,1748851851167,-420.0,0.00019726,2]
[363732299,1748851851176,-474.46,0.00019726,2]
[363732300,1748851851187,-420.0,0.00019726,2]
[363732301,1748851851196,-440.61,0.00019726,2]
[363732302,1748851851208,-442.0625276,0.00019726,2]
[363732303,1748851851218,-420.0,0.00019726,2]
[363732304,1748851851227,-3649.37,0.00019726,2]
[363732305,1748851851237,-2635.9,0.00019726,2]
[363732306,1748851851247,-1718.55,0.00019726,2]
[363732307,1748851851257,-420.0,0.00019726,2]
[363732308,1748851851267,-420.0,0.00019726,2]
[363732309,1748851851277,-151.0,0.00019726,2]
[363732310,1748851851287,-616.4,0.00019726,2]
[363732311,1748851851297,-420.0,0.00019726,2]
[363732312,1748851851307,-420.0,0.00019726,2]
[363732313,1748851851318,-420.0,0.00019726,2]
[363732314,1748851851327,-420.0,0.00019726,2]
[363732315,1748851851338,-420.0,0.00019726,2]
[363732316,1748851851348,-482.81851849,0.00019726,2]
[363732317,1748851851358,-97.91264995,0.00019726,2]
[363732318,1748851851738,-1454.69735005,0.00019726,2]
[363732319,1748851851748,-192.53480049,0.00019726,2]
[363732320,1748851851758,-3374.48855943,0.00019726,2]
[363732321,1748851852042,-7592.91144057,0.00019726,2]
[363732322,1748851852052,-151.0,0.00019726,2]
[363732323,1748851852061,-151.0,0.00019726,2]
[363732324,1748851852071,-420.0,0.00019726,2]
[363732325,1748851852081,-420.0,0.00019726,2]
[363732326,1748851852091,-151.0,0.00019726,2]
[363732327,1748851852100,-798.41,0.00019726,2]
[363732328,1748851852110,-420.0,0.00019726,2]
[363732329,1748851852120,-420.0,0.00019726,2]
[363732330,1748851852130,-420.0,0.00019726,2]
[363732331,1748851852140,-420.0,0.00019726,2]
[363732332,1748851852149,-254.06,0.00019726,2]
[363732333,1748851852159,-420.0,0.00019726,2]
[363732334,1748851852169,-2017.97,0.00019726,2]
[363732335,1748851852179,-426.03,0.00019726,2]
[363732336,1748851852188,-420.0,0.00019726,2]
[363732337,1748851852198,-420.0,0.00019726,2]
[363732338,1748851852208,-2125.91,0.00019726,2]
[363732339,1748851852218,-866.32,0.00019726,2]
[363732340,1748851852229,-420.0,0.00019726,2]
[363732341,1748851852239,-420.0,0.00019726,2]
[363732342,1748851852249,-642.79,0.00019726,2]
[363732343,1748851852259,-1155.76,0.00019726,2]
[363732344,1748851852270,-420.0,0.00019726,2]
[363732345,1748851852280,-215.27280733,0.00019726,2]
[363732346,1748851852290,-420.0,0.00019726,2]
[363732347,1748851852301,-499.355093,0.00019726,2]
[363732348,1748851852311,-500.0,0.00019726,2]
[363732349,1748851852321,-340.8,0.00019739,2]
[363732350,1748851852331,-150.0,0.00019739,2]
[363732351,1748851852341,-7561.86930377,0.00019748,2]
[363732352,1748851852554,-153.668159,0.00019748,2]
[363732353,1748851852565,-597.48624,0.00019748,2]
[363732354,1748851852574,-597.48624,0.00019748,2]
[363732355,1748851852583,-500.0,0.00019753,2]
[363732356,1748851852593,-500.0,0.00019753,2]
[363732357,1748851852602,-259.01702826,0.00019753,2]
[363732358,1748851852611,-1351.0,0.00019753,2]
[363732359,1748851852621,-150.0,0.00019754,2]
[363732360,1748851852630,-169.07142935,0.00019763,2]
[363732361,1748851852640,-5077.848,0.00019763,2]
[363732362,1748851852650,-246.136,0.00019763,2]
[363732363,1748851852659,-1252.33691279,0.00019763,2]
[363732364,1748851852669,-431.98305388,0.00019763,2]
[363732365,1748851852678,-1157.0,0.00019765,2]
[363732366,1748851852688,-155.0,0.00019765,2]
[363732367,1748851852699,-7010.0,0.00019765,2]
[363732368,1748851852711,-4075.0,0.00019765,2]
[363732369,1748851852721,-850.0,0.00019765,2]
[363732370,1748851852730,-882.0,0.00019765,2]
[363732371,1748851852741,-300.0,0.00019769,2]
[363732372,1748851852750,-150.0,0.00019777,2]
[363732373,1748851852761,-151.0,0.00019778,2]
[363732374,1748851852771,-187.638627,0.00019778,2]
[363732375,1748851852780,-275.9852,0.00019778,2]
[363732376,1748851852790,-275.9852,0.00019778,2]
[363732377,1748851852802,-1348.551553,0.00019778,2]
[363732378,1748851852813,-1348.551553,0.00019778,2]
[363732379,1748851852822,-151.0,0.00019778,2]
[363732380,1748851852832,-5501.86042397,0.00019778,2]
[363732381,1748851852842,-160.79232204,0.0001978,2]
[363732382,1748851852852,-312.07298515,0.00019781,2]
[363732383,1748851852861,-500.0,0.00019781,2]
[363732384,1748851852871,-1351.0,0.00019781,2]
[363732385,1748851852882,-151.0,0.00019781,2]
[363732386,1748851852891,-187.228472,0.00019781,2]
[363732387,1748851852901,-187.228472,0.00019781,2]
[363732388,1748851852910,-150.0,0.00019784,2]
[363732389,1748851852920,-431.98305386,0.00019786,2]
[363732390,1748851852930,-1252.33691278,0.00019797,2]
[363732391,1748851852939,-1000.0,0.00019799,2]
[363732392,1748851852949,-151.0,0.000198,2]
[363732393,1748851852960,-154.915973,0.000198,2]
[363732394,1748851852969,-154.915964,0.000198,2]
[363732395,1748851852977,-151.0,0.000198,2]
[363732396,1748851852987,-600.0,0.000198,7]
[363732397,1748851852997,-500.0,0.00019808,2]
[363732398,1748851853007,-1351.0,0.00019808,2]
[363732399,1748851853017,-431.98305386,0.00019809,2]
[363732400,1748851853026,-440.299628,0.00019811,2]
[363732401,1748851853037,-440.299628,0.00019811,2]
[363732402,1748851853047,-151.0,0.00019811,2]
[363732403,1748851853057,-151.0,0.00019811,2]
[363732404,1748851853067,-7561.86930377,0.00019824,2]
[363732405,1748851853077,-1358.69100646,0.0001983,2]
[363732406,1748851853113,-377.4452519,0.0001983,2]
[363732407,1748851853136,-2449.82735416,0.0001983,2]
[363732408,1748851853146,-152.94662,0.0001983,2]
[363732409,1748851853156,-169.07142935,0.00019831,2]
[363732410,1748851853166,-1252.33691278,0.00019832,2]
[363732411,1748851853176,-431.98305386,0.00019832,2]
[363732412,1748851853186,-451.04586067,0.00019833,2]
[363732413,1748851853196,-1035.54653,0.00019833,2]
[363732414,1748851853206,-500.0,0.00019836,2]
[363732415,1748851853219,-1351.0,0.00019836,2]
[363732416,1748851853228,-200.0,0.00019837,2]
[363732417,1748851853238,-5501.86042397,0.00019839,2]
[363732418,1748851853247,-160.79232204,0.0001984,2]
[363732419,1748851853257,-431.98305386,0.00019854,2]
[363732420,1748851853267,-12500.0,0.00019856,2]
[363732421,1748851853277,-500.0,0.00019863,2]
[363732422,1748851853287,-1351.0,0.00019863,2]
[363732423,1748851853298,-151.0,0.00019863,2]
[363732424,1748851853307,-151.88563,0.00019863,2]
[363732425,1748851853316,-151.0,0.00019863,2]
[363732426,1748851853327,-152.024393,0.00019863,2]
[363732427,1748851853336,-151.0,0.00019863,2]
[363732428,1748851853346,-151.0,0.00019863,2]
[363732429,1748851853356,-420.0,0.00019863,2]
[363732430,1748851853366,-420.0,0.00019863,2]
[363732431,1748851853375,-420.0,0.00019863,2]
[363732432,1748851853385,-156.456834,0.00019863,2]
[363732433,1748851853395,-420.0,0.00019863,2]
[363732434,1748851853405,-156.456834,0.00019863,2]
[363732435,1748851853415,-151.0,0.00019863,2]
[363732436,1748851853425,-420.0,0.00019863,2]
[363732437,1748851853434,-151.0,0.00019863,2]
[363732438,1748851853444,-151.0,0.00019863,2]
[363732439,1748851853454,-582.72,0.00019863,2]
[363732440,1748851853464,-420.0,0.00019863,2]
[363732441,1748851853473,-420.0,0.00019863,2]
[363732442,1748851853483,-420.0,0.00019863,2]
[363732443,1748851853493,-420.0,0.00019863,2]
[363732444,1748851853503,-151.0,0.00019863,2]
[363732445,1748851853512,-151.0,0.00019863,2]
[363732446,1748851853522,-420.0,0.00019863,2]
[363732447,1748851853532,-478.45447793,0.00019863,2]
[363732448,1748851853542,-235.06,0.00019863,2]
[363732449,1748851853551,-690.494012,0.00019863,2]
[363732450,1748851853560,-690.494012,0.00019863,2]
[363732451,1748851853570,-174.3044577,0.00019863,2]
[363732452,1748851853579,-420.0,0.00019863,2]
[363732453,1748851853589,-151.0,0.00019863,2]
[363732454,1748851853600,-420.0,0.00019863,2]
[363732455,1748851853609,-151.0,0.00019863,2]
[363732456,1748851853619,-152.021465,0.00019863,2]
[363732457,1748851853628,-420.0,0.00019863,2]
[363732458,1748851853637,-420.0,0.00019863,2]
[363732459,1748851853646,-420.0,0.00019863,2]
[363732460,1748851853656,-420.0,0.00019863,2]
[363732461,1748851853665,-420.0,0.00019863,2]
[363732462,1748851853674,-421.1,0.00019863,2]
[363732463,1748851853683,-1482.96,0.00019863,2]
[363732464,1748851853692,-200.0,0.00019863,2]
[363732465,1748851853701,-766.88,0.00019863,2]
[363732466,1748851853711,-420.0,0.00019863,2]
[363732467,1748851853721,-420.0,0.00019863,2]
[363732468,1748851853731,-601.92,0.00019863,2]
[363732469,1748851853741,-453.38,0.00019863,2]
[363732470,1748851853750,-744.05,0.00019863,2]
[363732471,1748851853759,-1397.73,0.00019863,2]
[363732472,1748851853768,-571.42,0.00019863,2]
[363732473,1748851853778,-433.82,0.00019863,2]
[363732474,1748851853787,-980.652323,0.00019863,2]
[363732475,1748851853798,-980.652323,0.00019863,2]
[363732476,1748851853808,-1879.38,0.00019863,2]
[363732477,1748851853818,-420.0,0.00019863,2]
[363732478,1748851853827,-2175.84,0.00019863,2]
[363732479,1748851853837,-420.0,0.00019863,2]
[363732480,1748851853847,-2379.6,0.00019863,2]
[363732481,1748851853857,-1668.89,0.00019863,2]
[363732482,1748851853866,-889.35,0.00019863,2]
[363732483,1748851853877,-420.0,0.00019863,2]
[363732484,1748851853887,-895.18,0.00019863,2]
[363732485,1748851853896,-420.0,0.00019863,2]
[363732486,1748851853905,-507.05,0.00019863,2]
[363732487,1748851853915,-959.29,0.00019863,2]
[363732488,1748851853924,-691.35,0.00019863,2]
[363732489,1748851853934,-1046.99,0.00019863,2]
[363732490,1748851853943,-6146.5,0.00019863,2]
[363732491,1748851853953,-420.0,0.00019863,2]
[363732492,1748851853964,-420.0,0.00019863,2]